bitfinex/quotes_ETHUSD_20240730
["timestamp","ask_amount","ask_price","bid_price","bid_amount"]
[1722355749299,0.55,3325.7,3325.2,3.00728]
[1722355749609,0.55,3325.8,3325.5,0.13928623]
[1722355749905,0.55,3325.8,3325.4,2.4329]
[1722355749906,3.55671,3325.9,3325.6,0.13917511]
[1722355750214,3.0068,3325.8,3325.4,2.4329]
[1722355750411,6.01368,3325.8,3325.7,0.13910101]
[1722355750695,3.00701,3325.6,3325.2,35.0]
[1722355750845,3.00716,3325.4,3325.0,2.2854]
[1722355751042,0.55,3325.3,3325.0,5.2854]
[1722355751948,0.55,3325.4,3325.0,5.2854]
[1722355752196,0.55,3325.4,3325.1,0.85943]
[1722355752696,3.5572,3325.4,3325.0,3.0]
[1722355752843,3.5572,3325.4,3324.9,0.3013]
[1722355752844,3.5572,3325.4,3324.9,3.3013]
[1722355753800,0.55,3325.4,3324.9,6.30885]
[1722355753958,0.55,3325.4,3325.0,1.666653]
[1722355754397,3.5572,3325.4,3325.0,1.666653]
[1722355755477,3.5572,3325.4,3324.9,3.0]
[1722355755811,3.5572,3325.4,3324.8,7.35]
[1722355755812,3.00732,3325.3,3324.8,7.35]
[1722355756106,3.00732,3325.3,3324.7,37.4473]
[1722355756107,0.55,3325.2,3324.7,37.4473]
[1722355756252,0.55,3325.2,3324.8,3.0]
[1722355756659,0.55,3325.2,3324.8,3.3013]
[1722355757878,0.55,3325.2,3324.9,0.13951341]
[1722355758078,3.00741,3325.2,3324.9,0.13951341]
[1722355758289,3.55743,3325.1,3324.9,0.13951341]
[1722355758580,3.55743,3325.1,3324.7,37.4473]
[1722355758581,0.55,3325.0,3324.7,37.4473]
[1722355759904,0.55,3325.0,3324.8,0.3013]
[1722355760110,0.55,3325.2,3324.8,3.35031288]
[1722355760418,0.55,3325.2,3324.9,3.00755]
[1722355760579,0.55,3325.5,3324.9,3.00755]
[1722355761272,3.00716,3325.4,3324.8,6.35800288]
[1722355761476,3.55725,3325.3,3324.9,0.59910502]
[1722355761714,3.55725,3325.3,3324.8,0.3013]
[1722355762245,3.00735,3325.2,3324.7,37.4473]
[1722355762448,0.55,3325.1,3324.7,37.4473]
[1722355762650,0.55,3325.1,3324.7,40.45506]
[1722355762789,0.55,3325.2,3324.7,43.50407288]
[1722355763242,0.55,3325.2,3324.8,0.3013]
[1722355763538,3.55734,3325.2,3324.7,38.04901288]
[1722355764205,3.55734,3325.2,3324.7,38.35031288]
[1722355765228,0.55,3325.2,3324.7,41.35809288]
[1722355766115,0.55,3325.2,3324.8,3.00769]
[1722355766316,3.55725,3325.3,3324.9,0.59910502]
[1722355766643,3.55725,3325.3,3324.7,38.30908]
[1722355766800,6.56456,3325.3,3324.7,38.30908]
[1722355769410,0.55,3325.1,3324.7,35.3013]
[1722355770566,0.55,3325.1,3324.7,38.35031288]
[1722355771072,0.55,3325.1,3324.7,41.35804288]
[1722355771227,0.55,3325.3,3324.7,41.35804288]
[1722355771422,3.55714,3325.5,3324.9,0.3013]
[1722355771655,3.55714,3325.5,3324.9,0.90040502]
[1722355771853,0.15312248,3325.4,3324.9,3.90799502]
[1722355772058,3.55714,3325.5,3324.9,3.90799502]
[1722355772059,0.55,3325.3,3324.9,3.90799502]
[1722355772258,0.55,3325.3,3324.9,3.90794502]
[1722355772459,2.4644,3326.3,3325.2,3.00728]
[1722355772641,3.00683,3325.8,3325.3,0.06013978]
[1722355772842,0.15311164,3325.7,3325.3,0.06013978]
[1722355773047,0.15311528,3325.6,3325.4,0.13927936]
[1722355773251,3.00683,3325.8,3325.1,2.6963131]
[1722355773433,3.15999997,3325.7,3325.2,0.13938593]
[1722355773633,3.16009997,3325.6,3325.2,0.13938593]
[1722355773950,0.15311891,3325.5,3325.2,0.13938593]
[1722355774149,0.55,3325.4,3325.2,0.13938593]
[1722355774339,0.55,3325.7,3325.2,0.13938593]
[1722355774536,0.55,3325.7,3325.3,2.42593853]
[1722355774736,0.55,3325.7,3325.5,3.00706]
[1722355774950,0.55,3325.7,3325.4,4.00495679]
[1722355775130,3.00643,3326.2,3325.6,3.44738579]
[1722355775335,0.15309669,3326.1,3325.6,3.3082]
[1722355775562,3.00643,3326.2,3325.7,0.13907557]
[1722355775770,3.00643,3326.2,3325.5,0.06013852]
[1722355775771,3.00667,3326.0,3325.5,0.06013852]
[1722355776036,3.00667,3326.0,3325.5,0.36143852]
[1722355776275,3.00667,3326.0,3325.6,0.13912885]
[1722355776454,0.55,3325.9,3325.7,0.06013239]
[1722355776761,10.51269558,3327.2,3325.7,0.06013239]
[1722355776762,3.0062,3326.5,3325.9,5.43789]
[1722355776969,3.0062,3326.5,3325.9,5.73919]
[1722355777171,3.0062,3326.5,3326.0,0.13884638]
[1722355777371,3.00607,3326.6,3326.1,0.06012443]
[1722355777573,3.00607,3326.6,3326.1,0.19891293]
[1722355777777,3.00617,3326.5,3326.1,0.19891293]
[1722355778616,3.00584,3326.9,3326.1,0.19891293]
[1722355778784,3.00547,3327.3,3326.1,0.19891293]
[1722355778785,2.3934,3327.4,3326.3,3.00629]
[1722355779102,2.3934,3327.4,3326.4,3.06628559]
[1722355779103,3.00562,3327.1,3326.4,3.06628559]
[1722355779261,3.0055,3327.3,3326.6,3.00601]
[1722355779441,3.0055,3327.3,3326.7,0.13810588]
[1722355779442,3.00561,3327.2,3326.7,0.13810588]
[1722355779649,3.00568,3327.1,3326.7,0.13810588]
[1722355779868,3.00568,3327.1,3326.5,0.06011558]
[1722355780072,3.00572,3327.0,3326.6,0.13815913]
[1722355780272,0.55,3326.9,3326.6,0.13815913]
[1722355780443,3.55564,3327.1,3326.6,0.13815913]
[1722355781205,0.55,3327.1,3326.6,0.13815913]
[1722355782070,0.55,3327.2,3326.6,0.13815913]
[1722355782610,3.55557,3327.2,3326.6,0.13815913]
[1722355783487,3.00567,3327.1,3326.6,0.13815913]
[1722355783817,0.55,3327.0,3326.6,0.13815913]
[1722355785197,3.55572,3327.0,3326.6,0.13815913]
[1722355785394,3.00586,3326.9,3326.6,0.13815913]
[1722355785594,0.55,3326.8,3326.6,0.13815913]
[1722355786140,3.5559,3326.8,3326.3,35.06011613]
[1722355786297,0.55,3326.8,3326.7,0.13797413]
[1722355786977,0.55,3326.8,3326.3,38.06643613]
[1722355787178,3.55589,3326.8,3326.7,0.13797413]
[1722355787410,0.55,3326.8,3326.3,35.06011613]
[1722355787620,0.55,3326.8,3326.7,0.13797413]
[1722355787785,0.55,3326.8,3326.3,35.06011613]
[1722355788113,0.55,3326.8,3326.7,0.13797413]
[1722355788332,0.55,3326.8,3326.3,35.06011613]
[1722355788333,0.55,3326.8,3326.4,0.13813386]
[1722355788531,0.55,3326.8,3326.5,0.06011614]
[1722355788755,0.55,3326.8,3326.5,0.19819675]
[1722355789031,3.5559,3326.8,3326.5,0.19819675]
[1722355789734,0.55,3326.8,3326.5,0.19819675]
[1722355790701,3.55594,3326.8,3326.5,0.19819675]
[1722355791430,0.55,3326.8,3326.5,0.19819675]
[1722355791602,0.55,3326.9,3326.5,0.19819675]
[1722355792635,3.5558,3326.9,3326.5,0.19819675]
[1722355795142,3.00592,3326.8,3326.5,0.19819675]
[1722355795313,3.5558,3326.9,3326.5,0.13808061]
[1722355795314,3.55603,3326.7,3326.5,0.13808061]
[1722355795637,0.55,3326.9,3326.2,9.7746]
[1722355795638,0.55,3326.6,3326.2,7.35]
[1722355795863,0.55,3326.9,3326.2,7.35]
[1722355796061,3.00608,3326.6,3326.2,7.35]
[1722355796354,0.55,3326.5,3326.2,7.35]
[1722355796560,0.55,3326.5,3326.2,11.392026]
[1722355796724,3.55597,3326.8,3326.3,2.39282443]
[1722355797121,3.55597,3326.8,3326.3,2.3327]
[1722355797320,0.55,3326.8,3326.3,2.3327]
[1722355797553,3.00589,3326.8,3326.3,2.3327]
[1722355797859,0.55,3326.7,3326.4,0.06011795]
[1722355798257,0.55,3326.9,3326.5,0.5399148]
[1722355798469,0.55,3326.9,3326.4,0.06011795]
[1722355798635,0.55,3326.9,3326.4,3.06636795]
[1722355800040,0.55,3326.9,3326.8,0.3305131]
[1722355800527,3.0,3327.9,3326.8,0.3305131]
[1722355800528,5.36651,3328.7,3327.2,3.00548]
[1722355800755,5.36651,3328.7,3326.9,2.3309]
[1722355800756,3.00495,3327.9,3327.0,3.00566]
[1722355801095,3.00523,3327.6,3326.9,7.99965]
[1722355801393,3.00512,3327.7,3327.0,3.0]
[1722355801394,3.0053,3327.5,3327.0,3.0]
[1722355801747,3.00512,3327.7,3327.0,6.839355]
[1722355802345,3.00512,3327.7,3327.1,3.0056]
[1722355802993,0.55,3327.6,3327.2,0.13758544]
[1722355803150,0.55,3327.6,3327.1,3.0056]
[1722355803352,0.55,3327.6,3327.3,0.13753221]
[1722355803849,3.55521,3327.6,3327.0,3.833665]
[1722355804047,3.00525,3327.5,3327.4,0.13747899]
[1722355804242,3.55525,3327.5,3327.0,3.0]
[1722355804480,0.55,3327.6,3327.4,0.13747899]
[1722355804689,0.55,3327.6,3327.1,38.00556]
[1722355804901,0.55,3327.8,3327.5,0.13742578]
[1722355805102,0.55,3328.0,3327.5,2.32389822]
[1722355805398,3.55481,3328.0,3327.6,0.13737257]
[1722355805561,0.55,3328.0,3327.6,0.13737257]
[1722355805964,0.55,3328.0,3327.6,35.13737257]
[1722355806165,0.55,3328.0,3327.6,0.13737257]
[1722355806358,3.00494,3327.9,3327.6,0.13737257]
[1722355806560,0.55,3327.8,3327.6,0.13737257]
[1722355807098,2.3,3328.4,3327.6,0.68403363]
[1722355807295,2.59481535,3329.9,3328.0,3.00478]
[1722355807296,2.4502,3329.0,3328.0,3.00478]
[1722355807589,3.0043,3328.6,3328.1,0.19691961]
[1722355808295,3.00436,3328.5,3328.1,0.13683392]
[1722355808490,3.304642,3328.7,3328.1,0.13683392]
[1722355808689,3.00431,3328.6,3328.0,3.0048]
[1722355808896,3.00431,3328.6,3328.2,0.13411714]
[1722355809192,3.00404,3328.9,3328.3,0.13406395]
[1722355809359,3.304444,3328.9,3328.3,0.13406395]
[1722355809560,3.00419,3328.7,3328.3,0.13406395]
[1722355809781,3.00419,3328.7,3328.2,2.3864]
[1722355809782,3.00436,3328.5,3328.2,2.3864]
[1722355809982,0.55,3328.4,3328.2,2.3864]
[1722355810291,3.00419,3328.7,3327.8,3.00494]
[1722355810292,0.55,3328.5,3327.9,2.3864]
[1722355810493,3.00436,3328.5,3328.0,35.0]
[1722355810827,3.00436,3328.5,3327.9,3.492327]
[1722355810828,0.55,3328.4,3327.9,3.492327]
[1722355811104,3.00453,3328.3,3327.9,2.3864]
[1722355811320,0.55,3328.2,3327.9,2.3864]
[1722355811476,3.55444,3328.4,3327.9,2.3864]
[1722355811810,0.55,3328.4,3327.9,5.43541288]
[1722355812011,0.55,3328.5,3327.9,5.43541288]
[1722355812304,0.55,3328.5,3327.9,8.44029288]
[1722355812510,3.55435,3328.5,3327.9,5.43541288]
[1722355812697,3.00445,3328.4,3327.9,2.3864]
[1722355813009,0.55,3328.3,3328.0,35.0]
[1722355813500,0.55,3328.4,3328.0,35.0]
[1722355814086,3.00425,3328.7,3328.0,41.00956]
[1722355814087,0.55,3328.6,3328.0,41.00956]
[1722355814424,3.00436,3328.5,3328.0,38.04901288]
[1722355814595,0.55,3328.4,3328.0,38.04901288]
[1722355815024,0.55,3328.5,3328.0,41.05381288]
[1722355815401,3.55436,3328.5,3328.0,38.04901288]
[1722355816331,3.00384,3329.1,3328.3,3.00449]
[1722355816332,3.00389,3329.1,3328.3,3.00449]
[1722355816504,3.00394,3329.0,3328.4,3.00443]
[1722355816999,3.00409,3328.8,3328.2,35.0]
[1722355817310,3.00422,3328.7,3328.2,35.0]
[1722355817621,3.00422,3328.7,3327.9,2.3864]
[1722355817622,3.0044,3328.5,3327.9,2.3864]
[1722355817822,3.0046,3328.3,3327.9,2.3864]
[1722355818128,0.55,3328.6,3327.3,2.4661]
[1722355818129,0.55,3328.2,3327.3,2.4661]
[1722355818293,3.00487,3328.0,3327.3,5.47152]
[1722355818495,3.00487,3328.0,3327.3,6.349318]
[1722355818716,3.55494,3327.9,3327.3,6.349318]
[1722355818894,3.00503,3327.8,3327.3,3.343938]
[1722355819093,0.55,3327.7,3327.3,3.343938]
[1722355819527,0.55,3327.9,3327.3,3.343938]
[1722355820029,3.00504,3327.8,3327.3,3.343938]
[1722355820329,0.55,3327.7,3327.3,3.343938]
[1722355820515,3.00523,3327.6,3327.3,2.4661]
[1722355820715,0.55,3327.5,3327.1,3.0]
[1722355821942,0.55,3327.7,3327.2,38.06560336]
[1722355822249,3.00429,3328.6,3327.4,3.00529]
[1722355822250,3.55486,3328.0,3327.4,3.00529]
[1722355822566,3.55486,3328.0,3327.3,6.04901288]
[1722355822899,3.55486,3328.0,3327.3,3.0]
[1722355823098,3.005,3327.8,3327.4,35.0]
[1722355823341,0.55,3327.7,3327.4,35.0]
[1722355824235,3.00485,3328.0,3327.4,35.0]
[1722355824236,3.5549,3327.9,3327.4,35.0]
[1722355824595,0.55,3327.9,3327.4,41.05431288]
[1722355824796,3.55481,3328.0,3327.4,41.05431288]
[1722355825028,0.55,3328.0,3327.5,3.00524]
[1722355825209,0.55,3328.0,3327.5,6.0705181]
[1722355825415,3.55485,3328.0,3327.5,0.0600981]
[1722355825639,3.00492,3327.9,3327.6,2.3534]
[1722355825878,0.55,3327.8,3327.6,2.3534]
[1722355826049,0.55,3327.8,3327.3,6.00538]
[1722355826231,0.55,3327.8,3327.4,35.0]
[1722355826773,3.00481,3328.0,3327.5,0.06009846]
[1722355826774,0.55,3327.9,3327.5,0.06009846]
[1722355827175,3.168,3329.1,3327.5,0.06009846]
[1722355827176,3.00366,3329.3,3327.5,5.77211134]
[1722355827327,3.00366,3329.3,3327.7,3.00507]
[1722355827328,3.00441,3328.5,3327.7,3.00507]
[1722355827530,3.00441,3328.5,3327.6,5.4673]
[1722355827531,3.00453,3328.3,3327.6,5.4673]
[1722355827844,3.00453,3328.3,3327.7,35.0]
[1722355828061,3.00366,3329.3,3327.8,3.00491]
[1722355828062,3.00439,3328.5,3327.8,3.00491]
[1722355828372,3.00468,3328.2,3327.6,8.47241]
[1722355828525,2.321,3328.7,3327.6,8.47241]
[1722355828526,3.0044,3328.5,3327.7,3.00507]
[1722355828733,0.55,3328.1,3327.8,35.0]
[1722355829165,3.55463,3328.2,3327.8,35.0]
[1722355830162,3.55463,3328.2,3328.1,0.33050396]
[1722355830776,3.00471,3328.1,3327.8,35.0]
[1722355830966,3.00471,3328.1,3327.6,5.4673]
[1722355830967,0.55,3328.0,3327.6,5.4673]
[1722355831398,3.55482,3328.0,3327.7,35.0]
[1722355831700,0.55,3328.0,3327.7,35.0]
[1722355832804,0.55,3328.0,3327.8,0.1653623]
[1722355833008,0.55,3328.2,3327.7,38.04901288]
[1722355833336,3.00471,3328.1,3327.8,0.1653623]
[1722355833522,0.55,3328.0,3327.8,3.1703323]
[1722355833670,0.55,3328.0,3327.7,38.04901288]
[1722355833868,2.4743,3327.9,3327.8,0.1653623]
[1722355834176,2.4743,3327.9,3327.4,3.00534]
[1722355834177,0.55,3327.9,3327.5,3.0]
[1722355834434,3.00476,3328.1,3327.8,0.16531626]
[1722355834604,3.00476,3328.1,3327.5,41.00525]
[1722355834605,0.55,3328.0,3327.5,41.00525]
[1722355834807,0.55,3328.0,3327.9,0.16526213]
[1722355835324,0.55,3328.1,3327.7,0.0600951]
[1722355835486,0.55,3328.1,3327.9,0.16526213]
[1722355835903,0.55,3328.1,3327.8,0.16531626]
[1722355836096,0.55,3328.1,3328.0,0.165208]
[1722355836318,0.55,3328.1,3327.9,0.16526213]
[1722355836521,0.55,3328.1,3328.0,0.165208]
[1722355837029,0.55,3328.1,3327.8,3.00498]
[1722355837238,0.55,3328.3,3328.0,0.165208]
[1722355837388,0.55,3328.3,3327.9,0.16526213]
[1722355837584,3.00466,3328.2,3328.1,0.16515387]
[1722355837835,3.00466,3328.2,3327.7,0.06009295]
[1722355837836,3.55466,3328.2,3328.0,0.165208]
[1722355838130,3.55466,3328.2,3328.1,0.16515387]
[1722355838131,6.00924,3328.2,3328.1,0.16515387]
[1722355838335,6.55924,3328.2,3328.1,0.16515387]
[1722355838504,3.00478,3328.1,3327.5,38.0]
[1722355838703,3.00478,3328.1,3327.5,41.04901288]
[1722355838704,0.55,3328.0,3327.5,41.04901288]
[1722355838924,0.55,3328.0,3327.5,44.05426288]
[1722355839454,0.55,3328.0,3327.7,3.00503]
[1722355839730,0.55,3328.2,3327.7,3.00503]
[1722355839943,2.3726,3329.0,3327.8,2.92009881]
[1722355840247,6.00357,3329.4,3328.6,3.00421]
[1722355840248,3.00364,3329.3,3328.6,3.00421]
[1722355840542,3.00364,3329.3,3328.7,35.06007468]
[1722355840681,5.25669,3329.4,3328.8,0.06007469]
[1722355840682,3.00372,3329.2,3328.8,0.06007469]
[1722355840885,3.00372,3329.2,3328.5,2.3735]
[1722355840886,3.00372,3329.2,3328.5,5.37785]
[1722355841089,3.00372,3329.2,3328.6,3.00422]
[1722355841286,6.00752,3329.2,3328.5,3.211729]
[1722355841515,6.00752,3329.2,3328.6,35.0]
[1722355841516,3.00395,3329.0,3328.6,35.0]
[1722355841903,3.00411,3328.8,3328.6,35.0]
[1722355842120,3.00398,3329.0,3328.6,35.0]
[1722355842633,3.00414,3328.8,3328.6,35.0]
[1722355842834,3.00417,3328.7,3328.6,35.0]
[1722355843132,0.55,3328.7,3328.6,35.0]
[1722355844934,3.00417,3328.7,3328.6,35.0]
[1722355845123,3.55417,3328.7,3328.6,35.0]
[1722355845500,0.55,3328.7,3328.2,0.33052025]
[1722355845697,0.55,3328.7,3328.3,0.16494663]
[1722355845698,6.009,3328.4,3328.3,0.16494663]
[1722355845901,6.00906,3328.3,3328.2,0.33052025]
[1722355846104,6.55906,3328.3,3328.2,0.33052025]
[1722355846419,0.55,3328.3,3328.2,0.33052025]
[1722355846633,0.55,3328.3,3328.2,0.4954289]
[1722355846935,3.55453,3328.3,3328.2,0.4954289]
[1722355847241,0.55,3328.3,3328.2,0.4954289]
[1722355847538,3.55453,3328.3,3328.2,0.4954289]
[1722355849340,6.55906,3328.3,3328.2,0.4954289]
[1722355849543,7.214966,3328.3,3328.2,0.4954289]
[1722355851558,7.36781635,3328.3,3328.2,0.4954289]
[1722355851746,7.214966,3328.3,3328.2,0.4954289]
[1722355852345,6.55906,3328.3,3328.2,0.4954289]
[1722355854958,3.55453,3328.3,3328.2,0.4954289]
[1722355855168,6.55906,3328.3,3328.2,0.4954289]
[1722355860954,3.55453,3328.3,3328.2,0.4954289]
[1722355861157,3.55453,3328.3,3328.2,0.16490865]
[1722355861158,0.55,3328.3,3328.2,0.16490865]
[1722355861462,3.00426,3328.6,3327.9,5.33165]
[1722355861463,3.00419,3328.7,3327.9,2.3268]
[1722355861649,3.00419,3328.7,3328.2,35.0]
[1722355861650,3.00433,3328.6,3328.2,35.0]
[1722355861964,3.00435,3328.5,3328.3,0.16496275]
[1722355862162,3.00427,3328.6,3328.3,0.49550699]
[1722355862460,3.00427,3328.6,3328.4,0.16490863]
[1722355862822,3.00419,3328.7,3328.4,0.16490863]
[1722355862823,3.00435,3328.5,3328.4,0.16490863]
[1722355863165,3.55435,3328.5,3328.4,0.16490863]
[1722355863773,0.55,3328.5,3328.4,0.16490863]
[1722355864047,6.5587,3328.5,3328.4,0.16490863]
[1722355864555,7.36756007,3328.5,3328.4,0.16490863]
[1722355865899,10.37191007,3328.5,3328.4,0.16490863]
[1722355867207,7.36756007,3328.5,3328.4,0.16490863]
[1722355867404,6.71169007,3328.5,3328.4,0.16490863]
[1722355868196,3.00421,3328.7,3328.4,0.16490863]
[1722355868358,3.00422,3328.7,3328.4,35.22499121]
[1722355868685,3.00418,3328.7,3328.4,35.22499121]
[1722355868883,3.00395,3329.0,3328.4,35.22499121]
[1722355869060,3.004,3328.9,3328.5,3.04901288]
[1722355869251,2.2953,3329.4,3328.6,0.16480041]
[1722355869252,3.00413,3328.8,3328.6,0.16480041]
[1722355869597,6.00844,3328.7,3328.6,0.16480041]
[1722355869768,6.16141915,3328.7,3328.6,0.16480041]
[1722355870093,3.00436,3328.5,3328.3,0.33054424]
[1722355870401,3.00436,3328.5,3328.3,35.33054424]
[1722355870689,0.55,3328.4,3328.3,35.33054424]
[1722355871467,0.55,3328.5,3328.3,35.33054424]
[1722355872502,0.55,3328.6,3328.3,38.37955712]
[1722355872711,0.55,3328.6,3328.4,0.0600816]
[1722355872913,0.55,3328.8,3328.4,0.0600816]
[1722355873201,3.00368,3329.3,3328.6,5.25515]
[1722355873401,3.15670741,3329.2,3328.7,0.06007536]
[1722355873604,0.99982016,3329.6,3328.7,0.06007536]
[1722355873605,0.15295741,3329.1,3328.7,0.06007536]
[1722355873804,0.99982016,3329.6,3328.7,0.06007536]
[1722355873805,3.0039,3329.0,3328.7,35.06007536]
[1722355874582,0.55,3328.9,3328.7,35.06007536]
[1722355874780,0.55,3329.0,3328.7,35.06007536]
[1722355875002,0.55,3329.1,3328.8,8.47726857]
[1722355875173,0.55,3329.3,3328.8,8.47726857]
[1722355875507,0.55,3329.3,3328.8,5.47318857]
[1722355875706,3.00338,3329.6,3328.8,8.47721857]
[1722355875899,0.15295005,3329.5,3328.8,5.47318857]
[1722355876104,3.00346,3329.5,3328.9,3.60308502]
[1722355876280,3.00346,3329.5,3329.0,0.06006867]
[1722355876807,3.00355,3329.4,3329.0,0.06006867]
[1722355876992,0.55,3329.3,3329.0,0.06006867]
[1722355877878,0.55,3329.3,3329.1,0.16424218]
[1722355878104,0.55,3329.5,3329.2,0.3828829]
[1722355878321,5.43795,3330.2,3329.2,0.3828829]
[1722355878322,3.00306,3330.0,3329.4,2.2804]
[1722355878509,3.00306,3330.0,3329.5,0.06006174]
[1722355878684,3.00306,3330.0,3329.6,0.16392573]
[1722355879017,3.00318,3329.8,3329.6,0.16392573]
[1722355879541,3.00306,3330.0,3329.6,0.16392573]
[1722355880333,3.00291,3330.1,3329.6,0.16392573]
[1722355880485,3.00303,3330.0,3329.7,0.06005889]
[1722355880691,5.36618,3330.6,3329.8,0.16378538]
[1722355880692,3.55312,3329.9,3329.8,0.16378538]
[1722355880885,3.55312,3329.9,3329.4,2.2804]
[1722355881129,3.55312,3329.9,3329.5,0.1639476]
[1722355881421,3.55312,3329.9,3329.6,0.06006043]
[1722355881832,3.55312,3329.9,3329.7,0.16383945]
[1722355882015,0.55,3329.9,3329.7,0.16383945]
[1722355882302,0.55,3330.0,3329.7,0.16383945]
[1722355883161,3.55301,3330.0,3329.7,0.16383945]
[1722355884021,3.00312,3329.9,3329.7,0.16383945]
[1722355884251,0.55,3329.8,3329.7,0.16383945]
[1722355884450,3.55318,3329.8,3329.7,0.16383945]
[1722355884759,3.00347,3329.5,3329.1,12.6189]
[1722355884911,0.905318,3329.8,3329.1,12.6189]
[1722355884912,3.00338,3329.6,3329.1,12.6189]
[1722355885233,3.00351,3329.5,3329.1,12.6189]
[1722355885635,3.00337,3329.6,3329.1,15.6227]
[1722355886186,3.55323,3329.8,3328.5,3.00433]
[1722355886187,3.00386,3329.1,3328.5,3.00431]
[1722355886476,3.00384,3329.1,3328.5,3.00429]
[1722355886614,0.55,3329.0,3328.7,3.00411]
[1722355886930,0.55,3329.0,3328.7,3.00415]
[1722355887110,0.55,3329.1,3328.6,38.30552]
[1722355887315,0.55,3329.1,3328.7,3.04901288]
[1722355887316,3.55382,3329.1,3328.7,3.04901288]
[1722355887655,0.55,3329.1,3328.7,3.04901288]
[1722355888815,3.55386,3329.1,3328.7,3.04901288]
[1722355889015,3.00392,3329.0,3328.7,3.04901288]
[1722355889247,3.004,3328.9,3328.7,3.04901288]
[1722355889444,3.00411,3328.8,3328.6,35.0]
[1722355889778,3.00392,3329.0,3328.7,3.0]
[1722355889779,3.00405,3328.9,3328.7,3.0]
[1722355889957,3.00392,3329.0,3328.7,3.0]
[1722355889958,3.00391,3329.0,3328.7,3.0]
[1722355890519,0.55,3329.1,3328.9,0.33054424]
[1722355890716,3.00376,3329.2,3328.9,0.33054424]
[1722355890972,3.00387,3329.1,3329.0,0.33054424]
[1722355891976,6.55774,3329.1,3329.0,0.33054424]
[1722355892929,6.55774,3329.1,3329.0,0.49450688]
[1722355893129,3.55387,3329.1,3329.0,0.49450688]
[1722355893579,6.55774,3329.1,3329.0,0.49450688]
[1722355894528,12.975949,3329.1,3329.0,0.49450688]
[1722355894850,12.975949,3329.1,3329.0,0.33054424]
[1722355909607,15.979819,3329.1,3329.0,0.33054424]
[1722355909964,18.983689,3329.1,3329.0,0.33054424]
[1722355910660,15.979819,3329.1,3329.0,0.33054424]
[1722355910868,12.975949,3329.1,3329.0,0.33054424]
[1722355911215,10.517749,3329.1,3329.0,0.33054424]
[1722355912177,13.521619,3329.1,3329.0,0.33054424]
[1722355913274,14.628619,3329.1,3329.0,0.33054424]
[1722355914118,11.624749,3329.1,3329.0,0.33054424]
[1722355917608,14.628619,3329.1,3329.0,0.33054424]
[1722355919036,11.624749,3329.1,3329.0,0.33054424]
[1722355919423,14.628619,3329.1,3329.0,0.33054424]
[1722355921393,3.00447,3328.4,3328.0,2.3301]
[1722355921553,3.00397,3329.0,3328.1,0.23301]
[1722355921554,0.55,3328.3,3328.1,0.23301]
[1722355921730,0.55,3328.3,3328.1,0.39789223]
[1722355921933,3.00458,3328.3,3328.1,0.39789223]
[1722355922168,0.55,3328.2,3328.1,0.39789223]
[1722355922774,3.55453,3328.3,3328.1,0.39789223]
[1722355922980,3.55453,3328.3,3328.2,0.27279922]
[1722355923327,3.55453,3328.3,3328.2,0.43761582]
[1722355924827,0.55,3328.3,3328.2,0.43761582]
[1722355925070,6.55906,3328.3,3328.2,0.43761582]
[1722355925272,6.55906,3328.3,3328.2,0.1648166]
[1722355925772,6.55912,3328.3,3328.2,0.16482581]
[1722355926069,6.55912,3328.3,3328.0,2.3301]
[1722355926070,6.00942,3328.1,3328.0,2.3301]
[1722355926274,6.55942,3328.1,3328.0,2.3301]
[1722355926943,3.55471,3328.1,3328.0,2.3301]
[1722355927146,3.55471,3328.1,3328.0,2.56311]
[1722355929227,0.55,3328.1,3328.0,2.56311]
[1722355929424,3.00466,3328.2,3328.0,2.56311]
[1722355929659,3.55471,3328.1,3328.0,2.56311]
[1722355932646,6.55942,3328.1,3328.0,2.56311]
[1722355932952,6.55942,3328.1,3328.0,2.3301]
[1722355933688,6.55942,3328.1,3327.7,35.0]
[1722355933689,3.00492,3327.9,3327.7,37.4118]
[1722355933888,3.00498,3327.8,3327.7,37.4118]
[1722355934266,3.0049,3327.9,3327.7,37.4118]
[1722355934568,3.00498,3327.8,3327.7,2.4118]
[1722355934730,3.55498,3327.8,3327.7,2.4118]
[1722355936591,6.55996,3327.8,3327.7,2.4118]
[1722355936748,3.00516,3327.6,3327.5,35.0]
[1722355937573,3.00508,3327.7,3327.5,35.0]
[1722355938084,3.00516,3327.6,3327.5,35.0]
[1722355939915,3.00507,3327.7,3327.5,38.04901288]
[1722355940219,3.555,3327.8,3327.5,38.04901288]
[1722355940416,3.55499,3327.8,3327.5,38.04901288]
[1722355940733,0.55,3327.8,3327.5,41.05426288]
[1722355941019,0.55,3327.9,3327.6,0.59910502]
[1722355941538,3.55491,3327.9,3327.6,0.59910502]
[1722355941743,3.00502,3327.8,3327.6,0.59910502]
[1722355941916,0.55,3327.7,3327.6,0.59910502]
[1722355942768,0.55,3327.8,3327.6,35.59910502]
[1722355942932,0.55,3327.8,3327.7,3.04901288]
[1722355943137,0.55,3327.9,3327.7,3.04901288]
[1722355943289,3.55494,3327.9,3327.7,3.04901288]
[1722355943495,0.55,3327.9,3327.7,3.04901288]
[1722355944408,3.55495,3327.9,3327.7,3.04901288]
[1722355944639,0.55,3327.9,3327.7,3.04901288]
[1722355944835,3.00491,3327.9,3327.7,3.04901288]
[1722355945004,0.55,3327.8,3327.7,3.04901288]
[1722355945543,3.55498,3327.8,3327.7,3.04901288]
[1722355945741,3.55498,3327.8,3327.4,6.45794]